bitfinex-derivatives/quotes_BNBF0:USTF0_20250510
["timestamp","ask_amount","ask_price","bid_price","bid_amount"]
[1746914247461,0.27922999,659.83,658.0,1.09523054]
[1746914247662,0.27922999,659.82,658.01,0.30383109]
[1746914247859,0.27922999,659.81,658.02,0.30383109]
[1746914248063,0.27922999,659.8,658.03,0.30383109]
[1746914248263,0.27922999,659.79,658.04,0.30383109]
[1746914248463,0.27922999,659.78,658.05,0.30383109]
[1746914248658,0.27922999,659.78,658.06,0.30383109]
[1746914248865,0.27922999,659.77,658.06,1.09152554]
[1746914249062,0.27922999,659.76,658.06,1.09152554]
[1746914249365,0.27922999,659.75,658.07,1.09152554]
[1746914249764,0.27922999,659.74,657.88,1.09152554]
[1746914250063,0.27922999,659.73,657.89,1.39533306]
[1746914250264,1.98324059,660.36,657.9,0.30380752]
[1746914250465,0.8452372,660.35,657.91,1.39533306]
[1746914250664,0.27912016,660.34,657.92,0.30380752]
[1746914250863,0.27912016,660.33,657.93,0.30380461]
[1746914251165,0.27912016,660.32,657.94,0.30380461]
[1746914251359,0.27912016,660.32,657.95,1.39533015]
[1746914251559,0.56611704,660.35,657.96,0.30380461]
[1746914251560,0.27912016,660.31,657.96,0.30380461]
[1746914252061,0.27912016,660.3,657.96,0.30380461]
[1746914252266,0.27912016,660.3,657.97,1.09152554]
[1746914252466,0.27912016,660.29,657.97,1.09152554]
[1746914252764,0.27912016,660.28,657.97,1.09152554]
[1746914253068,0.27912016,660.27,657.87,0.463]
[1746914253269,0.27912016,660.26,657.87,0.463]
[1746914253465,0.27912016,660.25,657.87,0.463]
[1746914253767,1.98324059,660.36,657.87,0.463]
[1746914253966,0.84549773,660.35,657.87,0.463]
[1746914254162,0.84549773,660.34,657.87,0.463]
[1746914254362,0.84549773,660.33,657.87,0.463]
[1746914254563,0.84549773,660.32,657.87,0.463]
[1746914254866,0.84549773,660.31,657.87,0.463]
[1746914255063,0.84549773,660.3,657.87,0.463]
[1746914255269,1.98324059,660.22,657.87,0.463]
[1746914255769,0.84558754,660.21,657.87,0.463]
[1746914255968,0.84558754,660.2,657.87,0.463]
[1746914256269,0.84558754,660.19,657.87,0.463]
[1746914256565,0.84558754,660.18,657.87,0.463]
[1746914256971,0.84558754,660.17,657.87,0.463]
[1746914257572,1.98324059,659.99,657.87,0.463]
[1746914258166,0.84558754,659.98,657.87,0.463]
[1746914258466,0.84558754,659.98,657.88,0.38]
[1746914258669,0.27923686,659.97,657.88,0.38]
[1746914258865,0.27923686,659.96,657.98,0.3039606]
[1746914259266,0.84558754,659.95,657.98,0.3039606]
[1746914259668,0.84558754,659.94,657.98,0.3039606]
[1746914259972,0.84558754,659.93,657.98,0.3039606]
[1746914260373,0.84558754,659.92,657.98,0.3039606]
[1746914260670,0.27923686,659.91,657.98,0.3039606]
[1746914260973,0.27923686,659.9,657.98,0.3039606]
[1746914261375,0.27923686,659.89,657.98,0.3039606]
[1746914261675,1.98324059,659.74,657.98,0.3039606]
[1746914262275,0.84558754,659.73,657.98,0.3039606]
[1746914262877,0.27923686,659.72,657.98,0.3039606]
[1746914263478,1.98324059,659.7,657.98,0.3039606]
[1746914263778,0.84558754,659.69,657.98,0.3039606]
[1746914263977,0.27923686,659.68,657.98,0.3039606]
[1746914264277,0.27923686,659.67,657.98,0.3039606]
[1746914264679,1.98324059,659.7,657.98,0.3039606]
[1746914264875,0.8456018,659.69,657.98,0.3039606]
[1746914265880,0.27924161,659.68,657.98,0.3039606]
[1746914266181,0.27924161,659.67,657.98,0.3039606]
[1746914266480,1.98324059,659.73,657.98,0.3039606]
[1746914266782,0.84549093,659.72,657.98,0.3039606]
[1746914266975,1.98324059,659.56,657.98,0.3039606]
[1746914267477,0.27920468,659.55,657.98,0.3039606]
[1746914267780,0.84549093,659.55,657.98,0.3039606]
[1746914267979,0.27920468,659.54,657.98,0.3039606]
[1746914268279,0.27920468,659.53,657.98,0.3039606]
[1746914268474,0.27920468,659.52,657.98,0.3039606]
[1746914268779,0.56628625,659.55,657.98,0.3039606]
[1746914268780,0.27920468,659.51,657.98,0.3039606]
[1746914269080,0.27920468,659.5,657.98,0.3039606]
[1746914269481,0.27920468,659.49,657.98,0.3039606]
[1746914269781,0.27920468,659.48,657.98,0.3039606]
[1746914270281,0.56628625,659.71,657.98,0.3039606]
[1746914270282,0.27920468,659.47,657.98,0.3039606]
[1746914270581,0.27920468,659.46,657.98,0.3039606]
[1746914270877,0.27920468,659.45,657.98,0.3039606]
[1746914271184,0.27920468,659.44,657.98,0.3039606]
[1746914271381,0.27920468,659.43,657.98,0.3039606]
[1746914271782,0.27920468,659.42,657.98,0.3039606]
[1746914272081,0.56628625,659.71,657.98,0.3039606]
[1746914272082,0.27920468,659.41,657.98,0.3039606]
[1746914272682,0.27920468,659.4,657.98,0.3039606]
[1746914273182,0.27920468,659.39,657.98,0.3039606]
[1746914273681,0.27920468,659.38,657.98,0.3039606]
[1746914274279,0.27920468,659.37,657.98,0.3039606]
[1746914274583,0.27920468,659.36,657.98,0.3039606]
[1746914274879,0.27920468,659.35,657.98,0.3039606]
[1746914275782,0.27920468,659.34,657.98,0.3039606]
[1746914276184,0.27920468,659.33,657.98,0.3039606]
[1746914276484,0.27920468,659.32,657.98,0.3039606]
[1746914276881,0.27920468,659.31,657.98,0.3039606]
[1746914277285,0.56628625,659.69,657.98,0.3039606]
[1746914277286,0.27920468,659.3,657.98,0.3039606]
[1746914277687,0.27920468,659.29,657.99,0.506]
[1746914277986,0.27920468,659.28,657.99,0.506]
[1746914278585,0.27920468,659.27,657.99,0.506]
[1746914279188,0.27920468,659.27,658.01,0.30394674]
[1746914279586,0.27920468,659.26,658.01,0.30394674]
[1746914279785,0.27920468,659.25,658.01,0.30394674]
[1746914280289,1.98324059,659.72,658.01,0.30394674]
[1746914280488,0.27920214,659.24,658.01,0.30394674]
[1746914280783,0.27920214,659.7,658.01,0.30394674]
[1746914281289,0.27920214,659.69,658.01,0.30394674]
[1746914281585,0.27920214,659.68,658.01,0.30394674]
[1746914281886,0.27920214,659.67,658.01,0.30394674]
[1746914282087,0.27920214,659.66,658.01,0.30394674]
[1746914282589,0.27920214,659.65,658.01,0.30394674]
[1746914282889,0.27920214,659.64,658.01,0.30394674]
[1746914283191,0.27920214,659.63,658.01,0.30394674]
[1746914283590,0.27920214,659.62,658.01,0.30394674]
[1746914283891,0.27920214,659.61,658.01,0.30394674]
[1746914284286,0.27920214,659.6,658.01,0.30394674]
[1746914284991,0.27920214,659.59,658.01,0.30394674]
[1746914285290,0.27920214,659.58,658.01,0.30394674]
[1746914285592,0.27920214,659.57,658.01,0.30394674]
[1746914285988,0.27920214,659.56,658.01,0.30394674]
[1746914287091,0.27920214,659.55,658.01,0.30394674]
[1746914287593,0.27920214,659.54,658.01,0.30394674]
[1746914287989,0.27920214,659.53,658.01,0.30394674]
[1746914288392,0.27920214,659.52,658.01,0.30394674]
[1746914288691,0.27920214,659.51,658.01,0.30394674]
[1746914289097,1.98324059,659.37,658.01,0.30394674]
[1746914289697,0.8454833,659.36,658.01,0.30394674]
[1746914289992,0.27920214,659.35,658.01,0.30394674]
[1746914290397,0.27920214,659.34,658.01,0.30394674]
[1746914290997,0.27920214,659.33,658.01,0.30394674]
[1746914291400,0.27920214,659.32,658.01,0.30394674]
[1746914291800,0.27920214,659.31,658.01,0.30394674]
[1746914292100,0.27920214,659.3,658.02,0.415]
[1746914292300,0.27920214,659.3,658.04,0.30393289]
[1746914292602,0.27920214,659.29,658.04,0.30393289]
[1746914293203,0.27920214,659.28,658.04,0.30393289]
[1746914293499,1.98324059,659.64,658.04,0.30393289]
[1746914293999,0.84585967,659.63,658.04,0.30393289]
[1746914294302,1.98324059,659.64,658.04,0.30393289]
[1746914294603,0.84586062,659.63,658.04,0.30393289]
[1746914294899,0.27932782,659.62,658.04,0.30393289]
[1746914295402,0.27932782,659.61,658.04,0.30393289]
[1746914296104,0.27932782,659.6,658.04,0.30393289]
[1746914296604,0.27932782,659.59,658.04,0.30393289]
[1746914297104,0.27932782,659.58,658.04,0.30393289]
[1746914297404,0.27932782,659.57,658.04,0.30393289]
[1746914297805,0.27932782,659.56,658.04,0.30393289]
[1746914298407,0.27932782,659.55,658.04,0.30393289]
[1746914298602,0.27932782,659.54,658.04,0.30393289]
[1746914299006,0.27932782,659.53,658.04,0.30393289]
[1746914299508,0.27932782,659.53,658.05,0.407]
[1746914299908,0.27932782,659.53,658.07,0.30391903]
[1746914300108,0.27932782,659.52,658.07,0.30391903]
[1746914300507,0.27932782,659.51,658.07,0.30391903]
[1746914300905,0.27932782,659.5,658.07,0.30391903]
[1746914301209,0.27932782,659.49,658.07,0.30391903]
[1746914301508,0.5665328,659.54,658.07,0.30391903]
[1746914301509,0.27932782,659.48,658.07,0.30391903]
[1746914302108,0.27932782,659.47,658.07,0.30391903]
[1746914302409,0.27932782,659.46,658.07,0.30391903]
[1746914302710,1.98324059,659.55,658.07,0.30391903]
[1746914302912,1.98324059,659.56,658.07,0.30391903]
[1746914303413,0.84599482,659.54,658.07,0.30391903]
[1746914303613,0.27937253,659.53,658.07,0.30391903]
[1746914303810,0.27937253,659.52,658.07,0.30391903]
[1746914304113,0.27937253,659.51,658.07,0.30391903]
[1746914304413,0.27937253,659.5,658.07,0.30391903]
[1746914304613,0.27937253,659.49,658.07,0.30391903]
[1746914304913,0.27937253,659.48,658.07,0.30391903]
[1746914305114,0.27937253,659.47,658.07,0.30391903]
[1746914305415,0.27937253,659.46,658.07,0.30391903]
[1746914305615,0.27937253,659.45,658.07,0.30391903]
[1746914305811,0.27937253,659.44,658.07,0.30391903]
[1746914306217,0.27937253,659.43,658.07,0.30391903]
[1746914306717,0.27937253,659.42,658.07,0.30391903]
[1746914307513,0.27937253,659.41,658.07,0.30391903]
[1746914307918,0.27937253,659.4,658.07,0.30391903]
[1746914308217,0.27937253,659.39,658.07,0.30391903]
[1746914308520,0.56662229,660.08,658.07,0.30391903]
[1746914308720,1.98324059,660.09,658.07,0.30391903]
[1746914309019,0.84592349,660.08,658.07,0.30391903]
[1746914309219,0.27934877,660.07,658.07,0.30391903]
[1746914309519,0.27934877,660.06,658.07,0.30391903]
[1746914310120,0.84592349,660.05,658.07,0.30391903]
[1746914310317,0.84592349,660.04,658.07,0.30391903]
[1746914310719,0.84592349,660.03,658.07,0.30391903]
[1746914311420,0.84592349,660.02,658.07,0.30391903]
[1746914311921,0.84592349,660.01,658.07,0.30391903]
[1746914312321,0.84592349,660.0,658.07,0.30391903]
[1746914312622,1.98324059,659.64,658.07,0.30391903]
[1746914313221,0.84592349,659.63,658.07,0.30391903]
[1746914313621,0.27934877,659.62,658.07,0.30391903]
[1746914313932,0.27934877,659.61,658.07,0.30391903]
[1746914314121,0.27934877,659.6,658.07,0.30391903]
[1746914314622,0.27934877,659.59,658.07,0.30391903]
[1746914315018,0.27934877,659.58,658.07,0.30391903]
[1746914315422,0.56657472,659.6,658.07,0.30391903]
[1746914315423,0.27934877,659.57,658.07,0.30391903]
[1746914315822,0.27934877,659.56,658.07,0.30391903]
[1746914316123,0.27934877,659.55,658.07,0.30391903]
[1746914316325,1.98324059,659.48,658.07,0.30391903]
[1746914317125,0.84592349,659.47,658.07,0.30391903]
[1746914317524,0.27934877,659.46,658.07,0.30391903]
[1746914317925,0.27934877,659.45,658.07,0.30391903]
[1746914318222,0.27934877,659.44,658.07,0.30391903]
[1746914318620,0.27934877,659.43,658.07,0.30391903]
[1746914319228,0.27934877,659.42,658.07,0.30391903]
[1746914319626,0.27934877,659.41,658.07,0.30391903]
[1746914320126,0.27934877,659.4,658.07,0.30391903]
[1746914320522,0.27934877,659.39,658.07,0.30391903]
[1746914320827,0.27934877,659.38,658.07,0.30391903]
[1746914321326,0.27934877,659.37,658.07,0.30391903]
[1746914321725,0.27934877,659.36,658.07,0.30391903]
[1746914322129,0.27934877,659.35,658.07,0.30391903]
[1746914322431,0.27934877,659.34,658.07,0.30391903]
[1746914322732,1.98324059,659.15,658.07,0.30391903]
[1746914323231,0.84592349,659.14,658.07,0.30391903]
[1746914323530,0.27934877,659.13,658.07,0.30391903]
[1746914323831,0.27934877,659.12,658.07,0.30391903]
[1746914324231,0.27934877,659.11,658.07,0.30391903]
[1746914324926,0.27934877,659.1,658.08,0.374]
[1746914325227,0.27934877,659.09,658.1,0.30390518]
[1746914325631,0.27934877,659.08,658.1,0.30390518]
[1746914326033,0.56657472,659.3,658.1,0.30390518]
[1746914326034,0.27934877,659.07,658.1,0.30390518]
[1746914326331,0.27934877,659.06,658.1,0.30390518]
[1746914326732,0.84592349,659.3,658.1,0.30390518]
[1746914326929,1.98324059,659.28,658.1,0.30390518]
[1746914327833,0.84592349,659.27,658.1,0.30390518]
[1746914329338,0.27934877,659.26,658.1,0.30390518]
[1746914329631,0.27934877,659.25,658.1,0.30390518]
[1746914329935,0.27934877,659.24,658.1,0.30390518]
[1746914330241,0.27934877,659.23,658.1,0.30390518]
[1746914330542,1.98324059,659.69,658.1,0.30390518]
[1746914331138,0.84594787,659.68,658.1,0.30390518]
[1746914331544,1.98324059,659.33,658.1,0.30390518]
[1746914331941,0.84594787,659.32,658.1,0.30390518]
[1746914332244,0.27935689,659.31,658.1,0.30390518]
[1746914332444,0.27935689,659.3,658.1,0.30390518]
[1746914332841,0.27935689,659.29,658.1,0.30390518]
[1746914333245,0.27935689,659.28,658.1,0.30390518]
[1746914333641,0.27935689,659.27,658.1,0.30390518]
[1746914334241,0.27935689,659.26,658.1,0.30390518]
[1746914334542,0.27935689,659.25,658.1,0.30390518]
[1746914335548,0.27935689,659.24,658.1,0.30390518]
[1746914335948,0.27935689,659.23,658.1,0.30390518]
[1746914336249,2.26259748,659.23,658.1,0.30390518]
[1746914336444,0.27935689,659.22,658.1,0.30390518]
[1746914336649,0.27935689,659.21,658.1,0.30390518]
[1746914337149,0.84594787,659.22,658.1,0.30390518]
[1746914338451,0.84594787,659.74,658.1,0.30390518]
[1746914338746,0.27935689,659.73,658.1,0.30390518]
[1746914339147,0.27935689,659.72,658.1,0.30390518]
[1746914339653,0.27935689,659.71,658.1,0.30390518]
[1746914340050,0.27935689,659.7,658.1,0.67490518]
[1746914340851,0.27935689,659.69,658.1,0.67490518]
[1746914341352,0.27935689,659.68,658.1,0.67490518]
[1746914341652,0.27935689,659.67,658.1,0.67490518]
[1746914342149,0.27935689,659.66,658.1,0.67490518]
[1746914342454,0.27935689,659.65,658.1,0.67490518]
[1746914342749,0.84594787,659.64,658.1,0.67490518]
[1746914344055,1.98324059,659.05,658.1,0.67490518]
[1746914344353,0.84594787,659.04,658.1,0.67490518]
[1746914344856,0.27935689,659.03,658.1,0.67490518]
[1746914345253,0.27935689,659.02,658.1,0.67490518]
[1746914345656,0.27935689,659.01,658.1,0.67490518]
[1746914345954,0.27935689,659.0,658.1,0.67490518]
[1746914346453,0.27935689,658.99,658.1,0.67490518]
[1746914346755,0.27935689,658.98,658.1,0.67490518]
[1746914347155,0.27935689,658.97,658.1,0.67490518]
[1746914347452,0.27935689,658.96,658.1,0.67490518]
[1746914347754,0.27935689,658.95,658.1,0.67490518]
[1746914348055,0.56659098,659.02,658.1,0.67490518]
[1746914348056,0.27935689,658.94,658.1,0.67490518]
[1746914348355,0.27935689,658.93,658.1,0.67490518]
[1746914348653,0.27935689,658.92,658.1,0.67490518]
[1746914349152,0.27935689,658.91,658.11,0.446]
[1746914349557,0.27935689,659.01,658.11,0.446]
[1746914349761,0.27935689,659.01,658.13,0.30389132]
[1746914349958,0.56659098,659.07,658.13,0.30389132]
[1746914349959,0.27935689,659.0,658.13,0.30389132]
[1746914350159,0.27935689,658.99,658.13,0.30389132]
[1746914350558,0.27935689,659.06,658.13,0.30389132]
[1746914350861,1.98324059,659.08,658.13,0.30389132]
[1746914351160,0.84599408,659.07,658.13,0.30389132]
[1746914351658,0.27937228,659.06,658.13,0.30389132]
[1746914352059,0.27937228,659.05,658.13,0.30389132]
[1746914352452,0.27937228,659.04,658.13,0.30389132]
[1746914352859,0.27937228,659.31,658.13,0.30389132]
[1746914353261,0.27937228,659.3,658.13,0.30389132]
[1746914353559,0.27937228,659.29,658.13,0.30389132]
[1746914353859,0.27937228,659.28,658.13,0.30389132]
[1746914354259,0.27937228,659.27,658.13,0.30389132]
[1746914354862,0.27937228,659.26,658.13,0.30389132]
[1746914355362,0.27937228,659.25,658.13,0.30389132]
[1746914355863,0.27937228,659.24,658.13,0.30389132]
[1746914356156,1.98324059,659.4,658.13,0.30389132]
[1746914356561,0.84599285,659.39,658.13,0.30389132]
[1746914356961,0.27937187,659.38,658.13,0.30389132]
[1746914357363,0.27937187,659.37,658.13,0.30389132]
[1746914357758,0.27937187,659.36,658.13,0.30389132]
[1746914358064,0.27937187,659.35,658.13,0.30389132]
[1746914358566,0.56662098,659.39,658.13,0.30389132]
[1746914358567,0.27937187,659.34,658.13,0.30389132]
[1746914358961,0.27937187,659.33,658.13,0.30389132]
[1746914359166,0.27937187,659.32,658.13,0.30389132]
[1746914359467,0.27937187,659.31,658.13,0.30389132]
[1746914359762,0.27937187,659.3,658.13,0.30389132]
[1746914359965,1.98324059,659.25,658.13,0.30389132]
[1746914360466,0.84599285,659.24,658.13,0.30389132]
[1746914360766,0.27937187,659.23,658.13,0.30389132]
[1746914361066,0.27937187,659.22,658.13,0.30389132]
[1746914361367,0.27937187,659.21,658.13,0.30389132]
[1746914361766,0.27937187,659.2,658.13,0.30389132]
[1746914362167,0.27937187,659.19,658.13,0.30389132]
[1746914362467,0.27937187,659.18,658.13,0.30389132]
[1746914362767,0.27937187,659.17,658.13,0.30389132]
[1746914363167,0.27937187,659.16,658.13,0.30389132]
[1746914363568,0.27937187,659.15,658.13,0.30389132]
[1746914363769,0.27937187,659.14,658.13,0.30389132]
[1746914364168,0.27937187,659.13,658.13,0.30389132]
[1746914364570,0.27937187,659.12,658.13,0.30389132]
[1746914364969,0.27937187,659.11,658.13,0.30389132]
[1746914365271,0.27937187,659.1,658.13,0.30389132]
[1746914365565,0.27937187,659.09,658.13,0.30389132]
[1746914365871,1.98324059,659.24,658.13,0.30389132]
[1746914366171,0.84659539,659.23,658.13,0.30389132]
[1746914366470,0.84659539,659.22,658.13,0.30389132]
[1746914366870,0.84659539,659.21,658.13,0.30389132]
[1746914367071,1.98324059,659.24,658.13,0.30389132]
[1746914367472,0.84662591,659.23,658.13,0.30389132]
[1746914367773,0.84662591,659.22,658.13,0.30389132]
[1746914368276,1.98324059,658.72,658.13,0.30389132]
[1746914368475,0.84662591,658.71,658.13,0.30389132]
[1746914368667,1.98324059,658.72,658.13,0.30389132]
[1746914369271,0.84668804,658.71,658.13,0.30389132]
[1746914369674,0.27960343,658.7,658.13,0.30389132]
[1746914369968,0.27960343,658.69,658.13,0.30389132]
[1746914370376,0.27960343,658.68,658.13,0.30389132]
[1746914370774,0.27960343,658.67,658.13,0.30389132]
[1746914371175,0.27960343,658.66,658.13,0.30389132]
[1746914371774,0.27960343,658.65,658.13,0.30389132]
[1746914372275,0.27960343,658.64,658.13,0.30389132]
[1746914372976,0.27960343,658.63,658.13,0.30389132]
[1746914373576,0.27960343,658.62,658.13,0.30389132]
[1746914373979,0.27960343,658.61,658.13,0.30389132]
[1746914374279,1.98324059,658.93,658.13,0.30389132]
[1746914374677,0.84705724,658.92,658.13,0.02416491]
[1746914374978,0.84705724,658.91,658.13,0.02416491]
[1746914375279,0.27972641,658.9,658.13,0.02416491]
[1746914375780,0.27972641,658.89,658.13,0.02416491]
[1746914376178,0.27972641,658.88,658.13,0.02416491]
[1746914376481,0.27972641,658.87,658.13,0.02416491]
[1746914376879,0.27972641,658.86,658.13,0.02416491]
[1746914377179,0.27972641,658.85,658.13,0.02416491]
[1746914377679,0.27972641,658.84,658.13,0.02416491]
[1746914377881,1.98324059,658.75,658.13,0.02416491]
[1746914378576,0.27972641,658.74,658.13,0.02416491]
[1746914378982,0.27972641,658.73,658.13,0.02416491]
[1746914379582,0.27972641,658.72,658.13,0.02416491]
[1746914379882,3.94499329,660.67,658.13,0.02416491]
[1746914379883,0.27972641,658.71,658.13,0.02416491]
[1746914380284,0.27972641,658.7,658.13,0.02416491]
[1746914380783,0.27972641,658.69,658.13,0.02416491]
[1746914381783,0.27972641,658.68,658.13,0.02416491]
[1746914382083,0.27972641,658.67,658.13,0.02416491]
[1746914382383,0.27972641,658.66,658.13,0.02416491]
[1746914382783,0.27972641,658.65,658.13,0.02416491]
[1746914383281,0.27972641,658.64,658.13,0.02416491]
[1746914383786,0.27972641,658.63,658.13,0.02416491]
[1746914384288,0.27972641,658.62,658.13,0.02416491]
[1746914384587,0.27972641,658.61,658.13,0.02416491]
[1746914384887,0.27972641,658.6,658.13,0.02416491]
[1746914385287,0.27972641,658.59,658.13,0.02416491]
[1746914385790,0.27972641,658.58,658.13,0.02416491]
[1746914386189,0.27972641,658.57,658.13,0.02416491]
[1746914386490,0.27972641,658.56,658.13,0.02416491]
[1746914386891,0.27972641,658.55,658.13,0.02416491]
[1746914387290,0.27972641,658.54,658.13,0.02416491]
[1746914387891,0.27972641,658.53,658.13,0.02416491]
[1746914388188,0.27972641,658.52,658.13,0.02416491]
[1746914388589,0.27972641,658.51,658.13,0.02416491]
[1746914388993,0.27972641,658.5,658.13,0.02416491]
[1746914389493,0.27972641,658.49,658.13,0.02416491]
[1746914389893,0.27972641,658.48,658.13,0.02416491]
[1746914390392,0.27972641,658.47,658.13,0.02416491]
[1746914390693,0.27972641,658.46,658.13,0.02416491]
[1746914391293,0.27972641,659.22,658.13,0.02416491]
[1746914392095,0.27972641,659.21,658.13,0.02416491]
[1746914392488,0.27972641,659.2,658.13,0.02416491]
[1746914393093,0.27972641,659.19,658.13,0.02416491]
[1746914393490,0.27972641,659.18,658.13,0.02416491]
[1746914393692,0.27972641,659.17,658.13,0.02416491]
[1746914394393,0.27972641,659.16,658.13,0.02416491]
[1746914394694,0.27972641,659.15,658.13,0.02416491]
[1746914394894,1.98324059,659.07,658.13,0.02416491]
[1746914395394,0.27972641,659.06,658.13,0.02416491]
[1746914395696,0.27972641,659.05,658.13,0.02416491]
[1746914396096,0.27972641,659.04,658.13,0.02416491]
[1746914396495,1.98324059,659.02,658.13,0.02416491]
[1746914396995,0.27972641,659.01,658.13,0.02416491]
[1746914397292,0.27972641,659.0,658.13,0.02416491]
[1746914397696,0.27972641,658.99,658.13,0.02416491]
[1746914397992,0.27972641,658.98,658.13,0.02416491]
[1746914398490,1.98324059,659.02,658.13,0.02416491]
[1746914398491,0.27972641,658.97,658.13,0.02416491]
[1746914398796,0.27972641,658.96,658.13,0.02416491]
[1746914398997,2.262967,658.96,658.13,0.02416491]
[1746914399198,0.27972641,658.95,658.13,0.02416491]
[1746914399493,0.27972641,658.94,658.13,0.02416491]
[1746914399697,0.27972641,658.93,658.13,0.02416491]
[1746914400100,0.27972641,658.92,658.13,0.02416491]
[1746914400502,1.98324059,658.58,658.13,0.02416491]
[1746914400897,0.27972641,658.57,658.13,0.02416491]
[1746914401200,0.27972641,658.56,658.13,0.02416491]
[1746914401698,0.27972641,658.55,658.13,0.02416491]
[1746914401999,0.27972641,658.54,658.13,0.02416491]
[1746914402300,1.98324059,658.44,658.13,0.02416491]
[1746914402898,0.27972641,658.43,658.13,0.02416491]
[1746914403198,0.27972641,658.42,658.13,0.02416491]
[1746914403604,0.27972641,658.41,658.13,0.02416491]
[1746914404003,0.27972641,658.4,658.13,0.02416491]
[1746914404304,0.27972641,658.39,658.13,0.02416491]
[1746914404697,0.27972641,658.38,658.13,0.02416491]
[1746914405403,1.98324059,658.41,658.13,0.02416491]
[1746914405404,0.27972641,658.37,658.13,0.02416491]
[1746914405602,0.27972641,658.36,658.13,0.02416491]
[1746914406000,0.27972641,658.35,658.13,0.02416491]
[1746914406304,0.27972641,658.34,658.13,0.02416491]
[1746914406605,0.27972641,658.33,658.13,0.02416491]
[1746914407205,0.27972641,658.32,658.13,0.02416491]
[1746914407604,0.27972641,658.42,658.13,0.02416491]
[1746914409606,0.27972641,659.0,658.13,0.02416491]
[1746914409808,0.27972641,658.99,658.13,0.02416491]
[1746914410109,1.98324059,659.08,658.13,0.02416491]
[1746914410509,0.27016929,659.07,658.13,0.02416491]
[1746914410810,1.98324059,659.05,658.13,0.02416491]
[1746914411307,0.27016929,659.04,658.13,0.02416491]
[1746914411807,0.27016929,659.03,658.13,0.02416491]
[1746914412222,0.27016929,659.02,658.13,0.02416491]
[1746914412605,0.27016929,659.01,658.13,0.02416491]
[1746914412809,1.98324059,658.76,658.13,0.02416491]
[1746914413404,0.27016929,658.75,658.13,0.02416491]
[1746914413807,0.27016929,658.74,658.13,0.02416491]
[1746914414009,0.27016929,658.73,658.13,0.02416491]
[1746914414305,0.27016929,658.72,658.13,0.02416491]
[1746914414604,0.27016929,658.71,658.13,0.02416491]
[1746914415011,1.98324059,658.62,658.13,0.02416491]
[1746914415411,0.27016929,658.61,658.13,0.02416491]
[1746914415906,0.27016929,658.6,658.13,0.02416491]
[1746914416107,1.98324059,658.62,658.13,0.02416491]
[1746914416412,0.2702358,658.61,658.13,0.02416491]
[1746914416810,0.2702358,658.6,658.13,0.02416491]
[1746914417111,1.98324059,658.62,658.13,0.02416491]
[1746914417112,0.2702358,658.59,658.13,0.02416491]
[1746914417411,0.2702358,658.58,658.13,0.02416491]
[1746914417910,1.98324059,658.62,658.13,0.02416491]
[1746914417911,0.2702358,658.57,658.13,0.02416491]
[1746914418205,0.2702358,658.56,658.13,0.02416491]
[1746914418410,1.98324059,658.38,658.13,0.02416491]
[1746914418611,0.2702358,658.37,658.13,0.02416491]
[1746914418906,0.2702358,658.36,658.13,0.00081426]
[1746914419212,0.2702358,658.35,658.13,0.00081426]
[1746914419610,0.2702358,658.34,658.13,0.00081426]
[1746914420011,0.2702358,658.33,658.13,0.00081426]
[1746914420307,0.2702358,658.32,658.13,0.00081426]
[1746914420812,0.2702358,658.31,658.13,0.00081426]
[1746914421007,0.2702358,658.3,658.13,0.00081426]
[1746914421413,0.2702358,658.29,658.13,0.00081426]
[1746914421813,1.98324059,658.33,658.13,0.00081426]
[1746914421814,0.2702358,658.28,658.13,0.00081426]
[1746914422114,0.2702358,658.27,658.13,0.00081426]
[1746914422510,0.2702358,658.26,658.13,0.00081426]
[1746914422917,0.2702358,658.25,658.13,0.00081426]
[1746914423215,0.2702358,658.24,658.13,0.00081426]
[1746914423615,0.2702358,658.23,658.13,0.00081426]
[1746914423916,0.2702358,658.22,658.13,0.00081426]
[1746914424216,0.2702358,658.21,658.13,0.00081426]
[1746914424509,0.2702358,658.2,658.13,0.00081426]
[1746914424914,0.2702358,658.28,658.13,0.00081426]
[1746914425214,1.97322205,658.38,658.13,0.00081426]
[1746914425215,0.2702358,658.27,658.13,0.00081426]
[1746914425510,0.2702358,658.26,658.13,0.00081426]
[1746914425811,0.2702358,658.25,658.13,0.00081426]
[1746914429316,0.26912367,658.3,657.71,0.30408538]
[1746914429617,0.26912367,658.29,657.71,0.30408538]
[1746914430111,0.26912367,658.28,657.71,0.30408538]
[1746914430416,0.26912367,658.27,657.71,0.30408538]
[1746914430615,1.97322205,658.18,657.71,0.30408538]
[1746914431012,0.26912367,658.17,657.71,0.30408538]
[1746914432322,0.26912367,658.16,657.71,0.30408538]
[1746914432619,0.26912367,658.15,657.71,0.30408538]
[1746914433019,0.26912367,658.14,657.71,0.30408538]
[1746914433420,0.26912367,658.13,657.71,0.30408538]
[1746914433722,0.26912367,658.12,657.71,0.30408538]
[1746914434022,0.26912367,658.11,657.71,0.30408538]
[1746914434321,0.26912367,658.4,657.71,0.30408538]
[1746914434623,0.26912367,658.39,657.71,0.30408538]
[1746914435221,0.26912367,658.38,657.71,0.30408538]
[1746914435522,0.26912367,658.37,657.71,0.30408538]